Workbook

Sheet 9-14, 23-28.01.2023
A1: Школа | B1: МБОУ "Школа №71" | E1: Отд./корп | I1: День | J1: 2023-01-27
A3: Прием пищи | B3: Раздел | C3: № рец. | D3: Блюдо | E3: Выход, г | F3: Цена | G3: Калорийность | H3: Белки | I3: Жиры | J3: Углеводы
A4: Завтрак | B4: гор.блюдо | C4: ТТК 2021 г | D4: Биточки рыбные, огурец соленый (доп.грнир) | E4: 90 | G4: 132 | H4: 9.5 | I4: 8.3 | J4: 4.8
B5: гор. блюдо | C5: № 312/2015 г | D5: Пюре кртофельное с маслом сливочным | E5: 155 | G5: 146 | H5: 3.28 | I5: 4.66 | J5: 22.03
B6: гор. блюдо | C6: Акт 2018 г | D6: Блинчики со сгущенным молоком | E6: 55 | G6: 114 | H6: 3.19 | I6: 2.52 | J6: 19.5
B7: гор.напиток | C7: № 648/2004 г | D7: Кисель из концентрата | E7: 200 | G7: 53 | H7: 0.00 | I7: 0.00 | J7: 13.10
A8: пятница | B8: хлеб | D8: Хлеб ржано-пшеничный | E8: 20 | G8: 44.00 | H8: 1.00 | I8: 0.20 | J8: 9.00
B9: хлеб | D9: Хлеб пшеничный | E9: 15 | G9: 35.00 | H9: 1.14 | I9: 0.12 | J9: 7.38
A11: ИТОГО | E11: 535 | F11: 62.10 | G11: =G4+G5+G6+G7+G8+G9 -> 524 | H11: =H4+H5+H6+H7+H8+H9 -> 18.11 | I11: 15.80 | J11: 75.81

Sheet 16-21.01, 30.01-04.02.2023
A1: Школа | B1: МБОУ "Школа №71" | E1: Отд./корп | I1: День | J1: 2023-02-02
A3: Прием пищи | B3: Раздел | C3: № рец. | D3: Блюдо | E3: Выход, г | F3: Цена | G3: Калорийность | H3: Белки | I3: Жиры | J3: Углеводы
A4: Завтрак | B4: гор.блюдо | C4: ТТК 2020 г | D4: Тефтели из говядины в соусе томатном | E4: 110 | G4: 117.00 | H4: 5.50 | I4: 6.83 | J4: 8.46
B5: гор блюдо | C5: №302/2015 г | D5: Каша гречневая рассыпчатая | E5: 150 | G5: 242.00 | H5: 6.62 | I5: 5.39 | J5: 41.87
B6: гор.напиток | C6: ТТК 2021 г | D6: Чай с сахаром | E6: 208 | G6: 32.00 | H6: 0.02 | I6: 0.00 | J6: 7.98
A7: понедельник | B7: хлеб | D7: Хлеб ржано-пшеничный | E7: 15 | G7: 33.00 | H7: 0.75 | I7: 0.15 | J7: 6.75
B8: хлеб | D8: Хлеб пшеничный | E8: 15 | G8: 35.00 | H8: 1.14 | I8: 0.12 | J8: 7.38
B9: закуска | C9: № 15/2015 г | D9: Сыр порциями | E9: 60 | G9: 53.00 | H9: 3.94 | I9: 3.99 | J9: 0.00
B10: печенье | D10: Печенье весовое | E10: 30 | G10: 48.00 | H10: 1.07 | I10: 1.14 | J10: 8.23
A12: ИТОГО | E12: 543 | F12: 62.10 | G12: =G4+G5+G6+G7+G9+G10+G8 -> 560.00 | H12: =H4+H5+H6+H7+H9+H10+H8 -> 19.04 | I12: =I4+I5+I6+I7+I9+I10+I8 -> 17.62 | J12: =J4+J5+J6+J7+J9+J10+J8 -> 80.67
A13: Завтрак | B13: гор.блюдо | C13: ТТК 2021 | D13: Рагу из птицы | E13: 200 | G13: 278.00 | H13: 12.04 | I13: 15.23 | J13: 23.20
A14: вторник | B14: гор.напиток | C14: ТТК 2021 | D14: Напиток из шиповника | E14: 200 | G14: 41.00 | H14: 0.01 | J14: 10.17
B15: хлеб | D15: Хлеб ржано-пшеничный | E15: 20 | G15: 44.00 | H15: 1.00 | I15: 0.20 | J15: 9.00
B16: хлеб | D16: Хлеб пшеничный | E16: 20 | G16: 47.00 | H16: 1.52 | I16: 0.16 | J16: 9.84
B17: закуска | C17: № 45/2015 г | D17: Салат из белокачанной капусты | E17: 60 | G17: 54.00 | H17: 0.93 | I17: 3.05 | J17: 5.64
B18: фрукт | C18: № 338/2015г | D18: Плоды свежие (яблоки) | E18: 100 | G18: 47.00 | H18: 0.40 | I18: 0.40 | J18: 9.80
A20: ИТОГО | E20: 600 | F20: 62.10 | G20: =G13+G14+G15+G16+G17+G18 -> 511.00 | H20: =H13+H14+H15+H16+H17+H18 -> 15.90 | I20: =I13+I14+I15+I16+I17+I18 -> 19.04 | J20: =J13+J14+J15+J16+J17+J18 -> 67.65
A21: Завтрак | B21: гор.блюдо | C21: ТТК 2021 г | D21: Котлеты "Школьные" | E21: 90 | G21: 113 | H21: 11.00 | I21: 6.09 | J21: 3.60
B22: гор.блюдо | C22: № 304/2015 г | D22: Рис отварной с маслом сливочным | E22: 155 | G22: 257 | H22: 3.87 | I22: 9.05 | J22: 40.05
B23: гор.напиток | C23: № 699/2004 | D23: Компот из замороженной вишни | E23: 200 | G23: 48.00 | H23: 0.12 | I23: 0.03 | J23: 11.57
A24: среда | B24: хлеб | D24: Хлеб ржано-пшеничный | E24: 15 | G24: 33.00 | H24: 0.75 | I24: 0.15 | J24: 6.75
B25: хлеб | D25: Хлеб пшеничный | E25: 15 | G25: 35.00 | H25: 1.14 | I25: 0.12 | J25: 7.38
B26: закуска | C26: №52/2015 г | D26: Свекла отварная (долькам) с маслом | E26: 60 | G26: 56 | H26: 0.85 | I26: 3.65 | J26: 5.02
A28: ИТОГО | E28: 535 | F28: 62.10 | G28: =G21+G22+G23+G24+G25+G26 -> 542.00 | H28: =H21+H22+H23+H24+H25+H26 -> 17.73 | I28: =I21+I22+I23+I24+I25+I26 -> 19.09 | J28: =J21+J22+J23+J24+J25+J26 -> 74.37
A29: Завтрак | B29: гор.блюдо | C29: № 360/2015 г | D29: Гуляш из говядины | E29: 90 | G29: 123.00 | H29: 10.80 | I29: 7.70 | J29: 2.56
B30: гор.блюдо | C30: № 202/2015 г | D30: Макаронные изделия отварные | E30: 150 | G30: 212.00 | H30: 5.60 | I30: 5.06 | J30: 35.91
B31: гор.напиток | C31: №348/2015 | D31: Компот из свежих плодов (яблоки) | E31: 200 | G31: 49.00 | H31: 0.08 | I31: 0.08 | J31: 11.94
B32: хлеб | D32: Хлеб ржано-пшеничный | E32: 15 | G32: 33.00 | H32: 0.75 | I32: 0.15 | J32: 6.75
B33: хлеб | D33: Хлеб пшеничный | E33: 15 | G33: 35.00 | H33: 1.14 | I33: 0.12 | J33: 7.38
A34: четверг | B34: закуска | C34: ТТК | D34: Салат из моркови | E34: 60 | G34: 95.00 | H34: 0.63 | I34: 6.04 | J34: 9.34
A36: ИТОГО | E36: =E29+E30+E31+E32+E33+E34 -> 530 | F36: 62.10 | G36: =G29+G30+G31+G32+G33+G34 -> 547.00 | H36: =H29+H30+H31+H32+H33+H34 -> 19.00 | I36: =I29+I30+I31+I32+I33+I34 -> 19.15 | J36: =J29+J30+J31+J32+J33+J34 -> 73.88
A37: Завтрак | B37: гор.блюдо | C37: № 312/2015 г | D37: Пюре картофельное с маслом сливочным | E37: 155 | G37: 146 | H37: 3.28 | I37: 4.66 | J37: 22.03
B38: гор.блюдо | C38: ТТК 2022 г | D38: Чикен | E38: 90 | G38: 195 | H38: 11.1 | I38: 8.2 | J38: 19.09
B39: гор.напиток | C39: ТТК 2021г | D39: Напиток из замороженной черной смородины | E39: 200 | G39: 44 | H39: 0.1 | I39: 0.04 | J39: 10.71
A40: пятница | B40: хлеб | D40: Хлеб ржано-пшеничный | E40: 15 | G40: 33 | H40: 0.75 | I40: 0.15 | J40: 6.75
B41: хлеб | D41: Хлеб пшеничный | E41: 15 | G41: 35.00 | H41: 1.14 | I41: 0.12 | J41: 7.38
B42: закуска | C42: ТТК | D42: Салат из квашенной капусты (без лука) | E42: 60 | G42: 51.00 | H42: 0.98 | I42: 3.05 | J42: 4.63
A44: ИТОГО | E44: =E37+E38+E39+E40+E41+E42 -> 535 | F44: 62.10 | G44: =G37+G38+G39+G40+G41+G42 -> 504 | H44: =H37+H38+H39+H40+H41+H42 -> 17.35 | I44: =I37+I38+I39+I40+I41+I42 -> 16.22 | J44: =J37+J38+J39+J40+J41+J42 -> 70.59
A45: Завтрак | B45: гор.блюдо | C45: № 202/2015 г | D45: Макаронные изделия отварные | E45: 150 | G45: 212.00 | H45: 5.60 | I45: 5.06 | J45: 35.91
B46: гор.блюдо | C46: № 243/2015 г | D46: Сосиски отварные | E46: 100 | G46: 144 | H46: 9.40 | I46: 11.00 | J46: 1.80
B47: гор.напиток | C47: №699/2004 г | D47: Напиток лимонный | E47: 200 | G47: 101 | H47: 0.14 | I47: 0.01 | J47: 24.43
B48: хлеб | D48: Хлеб ржано-пшеничный | E48: 15 | G48: 33 | H48: 0.75 | I48: 0.15 | J48: 6.75
A49: Суббота | B49: хлеб | D49: Хлеб пшеничный | E49: 15 | G49: 35.00 | H49: 1.14 | I49: 0.12 | J49: 7.38
B50: фрукты | C50: № 338/2015 г | D50: Плоды свежие (яблоки) | E50: 100 | G50: 47.00 | H50: 0.40 | I50: 0.40 | J50: 9.80
A52: ИТОГО | E52: =E45+E46+E47+E48+E49+E50 -> 580 | F52: 62.10 | G52: =G45+G46+G47+G48+G49+G50 -> 572 | H52: =H45+H46+H47+H48+H49+H50 -> 17.43 | I52: =I45+I46+I47+I48+I49+I50 -> 16.74 | J52: =J45+J46+J47+J48+J49+J50 -> 86.07
